Workbook

Sheet 报价表
A1: 序号 | B1: 产品名称 | C1: 品牌型号 | D1: 单位 | E1: 数量 | F1: 单价 | G1: 小计
A2: 1 | B2: 10米激光报靶系统 | C2: SIUS、LS10G3 | D2: 套 | E2: 60 | F2: =G2/E2 -> 140,402.90 | G2: 8,424,174.00
A3: 2 | B3: 25米激光报靶系统 | C3: SIUS、LS25/50 | D3: 套 | E3: 40 | F3: =G3/E3 -> 135,484.31 | G3: 5,419,372.40
A4: 3 | B4: 50米激光报靶系统 | C4: SIUS、LS25/50 | D4: 套 | E4: 40 | F4: =G4/E4 -> 142,034.89 | G4: 5,681,395.60
A5: 4 | B5: 配套场地改造 | C5: / | D5: 次 | E5: 1 | F5: 455,835.00 | G5: =F5 -> 455,835.00
A6: 合计金额（元）：壹仟玖佰玖拾捌万零柒佰柒拾柒元整 | G6: =SUM(G2:G5) -> 19,980,777.00

Sheet 明细表
A1: 序号 | B1: 产品名称 | C1: 品牌型号 | D1: 单位 | E1: 数量 | F1: 单价 | G1: 小计
A2: 10米激光报靶系统
A3: 一、10米靶端套装
A4: 1 | B4: 10米激光靶靶标 | C4: 品牌：SIUS、型号：LS10G3 | D4: 60 | E4: 套 | F4: 38,394.00 | G4: =F4*D4 -> 2,303,640.00
A5: 2 | B5: 10米气步枪靶面 | C5: 品牌：SIUS、型号：S20A023/10 | D5: 400 | E5: 张 | F5: 18.00 | G5: =F5*D5 -> 7,200.00
A6: 3 | B6: 10米气手枪靶面 | C6: 品牌：SIUS、型号：S20A022/10 | D6: 400 | E6: 张 | F6: 18.00 | G6: 7,200.00
A7: 4 | B7: 10米靶标支架，含收弹器 | C7: 品牌：SIUS、型号：LS10G2AN002 | D7: 60 | E7: 套 | F7: 7,321.00 | G7: 439,260.00
A8: 5 | B8: 10米激光靶取证套装 | C8: 品牌：SIUS、型号：LS10G2AN008 | D8: 60 | E8: 套 | F8: 14,578.00 | G8: 874,680.00
A9: 6 | B9: 靶端设备配套电源套装 | C9: 品牌：SIUS、型号：SPS01 | D9: 24 | E9: 套 | F9: 8,000.00 | G9: 192,000.00
A10: 7 | B10: 靶端设备配套线缆套装 | C10: 品牌：SIUS、型号：cable | D10: 60 | E10: 套 | F10: 1,800.00 | G10: 108,000.00
A11: 二、射手端套装
A12: 8 | B12: 射手端一体式显示器 | C12: 品牌：SIUS、型号：SAM01 | D12: 60 | E12: 套 | F12: 37,810.00 | G12: =F12*D12 -> 2,268,600.00
A13: 9 | B13: 射手端配套电源线缆套装 | C13: 品牌：SIUS、型号：cable | D13: 14 | E13: 套 | F13: 1,500.00 | G13: =F13*D13 -> 21,000.00
A14: 三、中控台套装
A15: 10 | B15: 中央控制台 | C15: 品牌：SIUS、型号：SNC02 | D15: 6 | E15: 台 | F15: 21,000.00 | G15: =F15*D15 -> 126,000.00
A16: 11 | B16: 中控台成绩处理系统 | C16: 品牌：SIUS、型号：TLCD-STYX | D16: 6 | E16: 套 | F16: 15,000.00 | G16: =F16*D16 -> 90,000.00
A17: 12 | B17: 中控台数据转换系统 | C17: 品牌：SIUS、型号：STE01 | D17: 6 | E17: 台 | F17: 28,800.00 | G17: 172,800.00
A18: 13 | B18: 综合数据转换盒 | C18: 品牌：SIUS、型号：STL01 | D18: 6 | E18: 台 | F18: 37,600.00 | G18: 225,600.00
A19: 14 | B19: 数据转换操作台 | C19: 品牌：SIUS、型号：定制 | D19: 6 | E19: 台 | F19: 7,500.00 | G19: 45,000.00
A20: 15 | B20: 终端成绩输出处理装置 | C20: 品牌：HP、型号：M254dn彩色 | D20: 6 | E20: 台 | F20: 3,500.00 | G20: 21,000.00
A21: 16 | B21: 成绩显示系统 | C21: 品牌：AOC、型号：65F1 | D21: 6 | E21: 套 | F21: 9,500.00 | G21: 57,000.00
A22: 17 | B22: 中控台配套线缆套装 | C22: 品牌：SIUS、型号：cable | D22: 6 | E22: 套 | F22: 5,000.00 | G22: 30,000.00
A23: 18 | B23: 中控台配套电源套装 | C23: 品牌：SIUS、型号：SPS01 | D23: 6 | E23: 套 | F23: 8,000.00 | G23: 48,000.00
A24: 四、中控室设备套装
A25: 19 | B25: 自动排名系统套装 | C25: 品牌：SIUS、型号：SIUSRANK | D25: 1 | E25: 套 | F25: 233,976.00 | G25: =F25*D25 -> 233,976.00
A26: 20 | B26: 中控室网络服务器设备套装 | C26: 品牌：SIUS、型号：SNS04 | D26: 2 | E26: 套 | F26: 152,000.00 | G26: =F26*D26 -> 304,000.00
A27: 21 | B27: 终端成绩输出处理装置 | C27: 品牌：HP、型号：M254dn彩色 | D27: 1 | E27: 个 | F27: 3,500.00 | G27: 3,500.00
A28: 22 | B28: 中控室配套线缆套装 | C28: 品牌：SIUS、型号：cable | D28: 1 | E28: 套 | F28: 34,000.00 | G28: 34,000.00
A29: 五、观众显示套装
A30: 23 | B30: 成绩数据转换显示系统 | C30: 品牌：Unilumin、型号：COB1.53 | D30: 1 | E30: 套 | F30: 699,718.00 | G30: =F30*D30 -> 699,718.00
A31: 24 | B31: 观众显示成绩转换设备 | C31: 品牌：SIUS、型号：SLS01 | D31: 4 | E31: 台 | F31: 28,000.00 | G31: =F31*D31 -> 112,000.00
A32: 25米激光报靶系统
A33: 一、25米靶端套装
A34: 1 | B34: 25米激光靶靶标 | C34: 品牌：SIUS、型号：LS25/50 | D34: 40 | E34: 套 | F34: 40,800.00 | G34: =F34*D34 -> 1,632,000.00
A35: 2 | B35: 标准手枪靶面 | C35: 品牌：SIUS、型号：S50A031 | D35: 430 | E35: 张 | F35: 60.00 | G35: =F35*D35 -> 25,800.00
A36: 3 | B36: 速射手枪靶面 | C36: 品牌：SIUS、型号：S50A033 | D36: 430 | E36: 张 | F36: 60.00 | G36: 25,800.00
A37: 4 | B37: 橡胶靶面 | C37: 品牌：SIUS、型号：LS25/50004 | D37: 120 | E37: 张 | F37: 460.00 | G37: 55,200.00
A38: 5 | B38: 信号灯 | C38: 品牌：SIUS、型号：LS2550AN002 | D38: 40 | E38: 个 | F38: 3,800.00 | G38: 152,000.00
A39: 6 | B39: 25米靶标支架 | C39: 品牌：SIUS、型号：SHS06 | D39: 8 | E39: 套 | F39: 35,733.00 | G39: 285,864.00
A40: 7 | B40: 靶端设备配套电源套装 | C40: 品牌：SIUS、型号：SPS01 | D40: 16 | E40: 套 | F40: 8,000.00 | G40: 128,000.00
A41: 8 | B41: 靶端设备配套线缆套装 | C41: 品牌：SIUS、型号：cable | D41: 40 | E41: 套 | F41: 1,800.00 | G41: 72,000.00
A42: 二、射手端套装
A43: 9 | B43: 射手端一体式显示器 | C43: 品牌：SIUS、型号：SAM01 | D43: 40 | E43: 套 | F43: 37,810.00 | G43: =F43*D43 -> 1,512,400.00
A44: 10 | B44: 射手端配套电源线缆套装 | C44: 品牌：SIUS、型号：cable | D44: 40 | E44: 套 | F44: 1,500.00 | G44: =F44*D44 -> 60,000.00
A45: 三、中控台套装
A46: 11 | B46: 中控台成绩处理系统 | C46: 品牌：SIUS、型号：TLCD-STYX | D46: 4 | E46: 套 | F46: 15,000.00 | G46: =F46*D46 -> 60,000.00
A47: 12 | B47: 数据转换操作台 | C47: 品牌：SIUS、型号：定制 | D47: 4 | E47: 台 | F47: 7,500.00 | G47: =F47*D47 -> 30,000.00
A48: 13 | B48: 终端成绩输出处理装置 | C48: 品牌：HP、型号：M254dn彩色 | D48: 4 | E48: 台 | F48: 3,500.00 | G48: 14,000.00
A49: 14 | B49: 成绩显示系统 | C49: 品牌：AOC、型号：65F1 | D49: 4 | E49: 套 | F49: 9,500.00 | G49: 38,000.00
A50: 15 | B50: 25米时间控制单元 | C50: 品牌：SIUS、型号：RCS01 | D50: 4 | E50: 台 | F50: 41,880.00 | G50: 167,520.00
A51: 16 | B51: 中控台配套线缆套装 | C51: 品牌：SIUS、型号：cable | D51: 4 | E51: 套 | F51: 5,000.00 | G51: 20,000.00
A52: 17 | B52: 中控台配套电源套装 | C52: 品牌：SIUS、型号：SPS01 | D52: 4 | E52: 套 | F52: 8,000.00 | G52: 32,000.00
A53: 四、中控室设备套装
A54: 18 | B54: 自动排名系统套装 | C54: 品牌：SIUS、型号：SIUSRANK | D54: 1 | E54: 套 | F54: 233,976.00 | G54: =F54*D54 -> 233,976.00
A55: 19 | B55: 中控室网络服务器设备套装 | C55: 品牌：SIUS、型号：SNS04 | D55: 2 | E55: 套 | F55: 152,000.00 | G55: =F55*D55 -> 304,000.00
A56: 20 | B56: 终端成绩输出处理装置 | C56: 品牌：HP、型号：M254dn彩色 | D56: 1 | E56: 个 | F56: 3,500.00 | G56: 3,500.00
A57: 21 | B57: 中控室配套线缆套装 | C57: 品牌：SIUS、型号：cable | D57: 1 | E57: 套 | F57: 34,000.00 | G57: 34,000.00
A58: 五、观众显示套装
A59: 22 | B59: 成绩数据转换显示系统 | C59: 品牌：Unilumin、型号：COB1.53 | D59: 1 | E59: 套 | F59: 421,312.40 | G59: =F59*D59 -> 421,312.40
A60: 23 | B60: 观众显示成绩转换设备 | C60: 品牌：SIUS、型号：SLS01 | D60: 4 | E60: 台 | F60: 28,000.00 | G60: =F60*D60 -> 112,000.00
A61: 50米激光报靶系统
A62: 一、50米靶端套装
A63: 1 | B63: 50米激光靶靶标 | C63: 品牌：SIUS、型号：LS25/50 | D63: 40 | E63: 套 | F63: 40,800.00 | G63: =F63*D63 -> 1,632,000.00
A64: 2 | B64: 慢射手枪靶面 | C64: 品牌：SIUS、型号：S50A031 | D64: 430 | E64: 张 | F64: 60.00 | G64: =F64*D64 -> 25,800.00
A65: 3 | B65: 小口径步枪靶面 | C65: 品牌：SIUS、型号：S50A030 | D65: 430 | E65: 张 | F65: 60.00 | G65: 25,800.00
A66: 4 | B66: 橡胶靶面 | C66: 品牌：SIUS、型号：HS25/50A071 | D66: 60 | E66: 张 | F66: 100.00 | G66: 6,000.00
A67: 5 | B67: 50米标靶复合支架 | C67: 品牌：SIUS、型号：SHS07 | D67: 40 | E67: 个 | F67: 3,800.00 | G67: 152,000.00
A68: 6 | B68: 靶端设备配套电源套装 | C68: 品牌：SIUS、型号：SPS01 | D68: 16 | E68: 套 | F68: 8,000.00 | G68: 128,000.00
A69: 7 | B69: 靶端设备配套线缆套装 | C69: 品牌：SIUS、型号：cable | D69: 40 | E69: 套 | F69: 1,800.00 | G69: 72,000.00
A70: 二、射手端套装
A71: 8 | B71: 射手端一体式显示器 | C71: 品牌：SIUS、型号：SAM01 | D71: 40 | E71: 套 | F71: 37,810.00 | G71: =F71*D71 -> 1,512,400.00
A72: 9 | B72: 运动员操作手柄 | C72: 品牌：SIUS、型号：RCA01 | D72: 40 | E72: 个 | F72: 1,200.00 | G72: =F72*D72 -> 48,000.00
A73: 10 | B73: 射手端配套电源线缆套装 | C73: 品牌：SIUS、型号：cable | D73: 40 | E73: 套 | F73: 1,500.00 | G73: 60,000.00
A74: 三、中控台套装
A75: 11 | B75: 中央控制台 | C75: 品牌：SIUS、型号：SNC02 | D75: 4 | E75: 台 | F75: 21,000.00 | G75: =F75*D75 -> 84,000.00
A76: 12 | B76: 中控台成绩处理系统 | C76: 品牌：SIUS、型号：TLCD-STYX | D76: 4 | E76: 套 | F76: 15,000.00 | G76: =F76*D76 -> 60,000.00
A77: 13 | B77: 中控台数据转换系统 | C77: 品牌：SIUS、型号：STE01 | D77: 6 | E77: 台 | F77: 28,800.00 | G77: 172,800.00
A78: 14 | B78: 综合数据转换盒 | C78: 品牌：SIUS、型号：STL01 | D78: 6 | E78: 台 | F78: 37,600.00 | G78: 225,600.00
A79: 15 | B79: 数据转换操作台 | C79: 品牌：SIUS、型号：定制 | D79: 4 | E79: 台 | F79: 7,500.00 | G79: 30,000.00
A80: 16 | B80: 终端成绩输出处理装置 | C80: 品牌：HP、型号：M254dn彩色 | D80: 4 | E80: 台 | F80: 3,500.00 | G80: 14,000.00
A81: 17 | B81: 成绩显示系统 | C81: 品牌：AOC、型号：65F1 | D81: 4 | E81: 套 | F81: 9,500.00 | G81: 38,000.00
A82: 18 | B82: 中控台配套线缆套装 | C82: 品牌：SIUS、型号：cable | D82: 4 | E82: 套 | F82: 5,000.00 | G82: 20,000.00
A83: 19 | B83: 中控台配套电源套装 | C83: 品牌：SIUS、型号：SPS01 | D83: 4 | E83: 套 | F83: 8,000.00 | G83: 32,000.00
A84: 四、中控室设备套装
A85: 20 | B85: 自动排名系统套装 | C85: 品牌：SIUS、型号：SIUSRANK | D85: 1 | E85: 套 | F85: 233,976.00 | G85: =F85*D85 -> 233,976.00
A86: 21 | B86: 中控室网络服务器设备套装 | C86: 品牌：SIUS、型号：SNS04 | D86: 2 | E86: 套 | F86: 152,000.00 | G86: =F86*D86 -> 304,000.00
A87: 22 | B87: 终端成绩输出处理装置 | C87: 品牌：HP、型号：M254dn彩色 | D87: 1 | E87: 个 | F87: 3,500.00 | G87: =F87*D87 -> 3,500.00
A88: 23 | B88: 中控室配套线缆套装 | C88: 品牌：SIUS、型号：cable | D88: 1 | E88: 套 | F88: 34,000.00 | G88: =F88*D88 -> 34,000.00
A89: 五、观众显示套装
A90: 24 | B90: 成绩数据转换显示系统 | C90: 品牌：Unilumin、型号：COB1.53 | D90: 1 | E90: 套 | F90: 655,519.60 | G90: =F90*D90 -> 655,519.60
A91: 25 | B91: 观众显示成绩转换设备 | C91: 品牌：SIUS、型号：SLS01 | D91: 4 | E91: 台 | F91: 28,000.00 | G91: =F91*D91 -> 112,000.00
A92: 电子靶安装所配套的场地改造
A93: 10米靶场
A94: 1 | B94: 凿（压)槽 | C94: 品牌：/、型号：100mm*140mm | D94: m | E94: 60 | F94: 23.862 | G94: =E94*F94 -> 1,431.72
A95: 2 | B95: 地面恢复 | C95: 品牌： / 、型号：100*140mm | D95: m2 | E95: 6 | F95: 132.17 | G95: =E95*F95 -> 793.02
A96: 3 | B96: 线槽 | C96: 品牌：宏发 、型号：Q235 | D96: m | E96: 60 | F96: 15.36 | G96: 921.60
A97: 4 | B97: 配线 | C97: 品牌：珠江、型号：BVV-3×4mm² | D97: m | E97: 765 | F97: 24.94 | G97: 19,079.10
A98: 5 | B98: 插座 | C98: 品牌：人民牌 、型号：250V/10A | D98: 个 | E98: 48 | F98: 20.98 | G98: 1,007.04
A99: 6 | B99: 配电箱 | C99: 品牌：人民牌、型号：600mm（宽）×400mm（高）×200mm（深） | D99: 台 | E99: 1 | F99: 2,773.49 | G99: 2,773.49
A100: 7 | B100: 线槽 | C100: 品牌：宏发 、型号：50MM | D100: m | E100: 70 | F100: 17.86 | G100: 1,250.20
A101: 8 | B101: 线槽 | C101: 品牌：宏发 、型号：Q235 | D101: m | E101: 5 | F101: 31.34 | G101: 156.70
A102: 9 | B102: 电力电缆 | C102: 品牌：珠江 、型号：YJV-0.6/1kV-5×4mm² | D102: m | E102: 95 | F102: 25.97 | G102: 2,467.15
A103: 10 | B103: 装饰灯 | C103: 品牌：三雄极光、型号：PAK567014 | D103: 套 | E103: 55 | F103: 170.19 | G103: 9,360.45
A104: 11 | B104: 装饰灯 | C104: 品牌：三雄极光、型号：PAK411495 | D104: 套 | E104: 35 | F104: 199.37 | G104: 6,977.95
A105: 12 | B105: 投光灯 | C105: 品牌：三雄极光、型号：PAK475441 | D105: 套 | E105: 65 | F105: 300.70 | G105: 19,545.50
A106: 13 | B106: 配管 | C106: 品牌：利达、型号：DN15mm | D106: m | E106: 891.6 | F106: 10.52 | G106: 9,379.63
A107: 14 | B107: 配线 | C107: 品牌：珠江、型号：BV-2.5mm2 | D107: m | E107: 1783 | F107: 3.64 | G107: 6,490.12
A108: 15 | B108: 照明开关 | C108: 品牌：人民牌、型号：10A/250V | D108: 个 | E108: 30 | F108: 20.05 | G108: 601.50
A109: 16 | B109: 电力电缆 | C109: 品牌：珠江 、型号：YJV-3*35mm2 | D109: m | E109: 50 | F109: 95.56 | G109: 4,778.00
A110: 17 | B110: 控制室 | C110: 品牌：/ 、型号：建筑面积9㎡ | D110: 个 | E110: 1 | F110: 11,300.00 | G110: 11,300.00
A111: 18 | B111: 倒计时钟 | C111: 品牌：佩凯仕、 型号：LD-3 | D111: 个 | E111: 2 | F111: 4,800.00 | G111: 9,600.00
A112: 19 | B112: 倒计时钟 | C112: 品牌：佩凯仕、型号：LS-3 | D112: 个 | E112: 1 | F112: 9,600.00 | G112: 9,600.00
A113: 25米靶场
A114: 1 | B114: 凿（压)槽 | C114: 品牌：/、 型号：100mm*140mm | D114: m | E114: 60 | F114: 23.862 | G114: =F114*E114 -> 1,431.72
A115: 2 | B115: 线槽 | C115: 品牌：宏发、 型号：Q235 | D115: m | E115: 60 | F115: 15.36 | G115: =F115*E115 -> 921.60
A116: 3 | B116: 插座 | C116: 品牌：人民牌、型号：250V/10A | D116: 个 | E116: 48 | F116: 20.98 | G116: 1,007.04
A117: 4 | B117: 配电箱 | C117: 品牌：人民牌、 型号：600mm（宽）×400mm（高）×200mm（深） | D117: 台 | E117: 1 | F117: 2,773.49 | G117: 2,773.49
A118: 5 | B118: 电力电缆 | C118: 品牌：珠江、型号：YJV-5*4mm2 | D118: m | E118: 95 | F118: 25.97 | G118: 2,467.15
A119: 6 | B119: 线槽 | C119: 品牌：宏发 、型号：Q235 | D119: m | E119: 5 | F119: 31.34 | G119: 156.70
A120: 7 | B120: 配线 | C120: 品牌：珠江、 型号：BVV-3×4mm² | D120: m | E120: 765 | F120: 24.94 | G120: 19,079.10
A121: 8 | B121: 电力电缆 | C121: 品牌：珠江 、型号：YJV-3*35mm2 | D121: m | E121: 50 | F121: 95.56 | G121: 4,778.00
A122: 9 | B122: 装饰灯 | C122: 品牌：三雄极光、型号：PAK567014 | D122: 套 | E122: 55 | F122: 170.19 | G122: 9,360.45
A123: 10 | B123: 装饰灯 | C123: 品牌：三雄极光、型号：PAK411495 | D123: 套 | E123: 35 | F123: 199.37 | G123: 6,977.95
A124: 11 | B124: 配管 | C124: 品牌：利达 、型号：DN15mm | D124: m | E124: 440.4 | F124: 10.52 | G124: 4,633.01
A125: 12 | B125: 配线 | C125: 品牌：珠江、 型号：BV-2.5mm2 | D125: m | E125: 880.77 | F125: 3.64 | G125: 3,206.00
A126: 13 | B126: 照明开关 | C126: 品牌：人民牌 、型号：10A/250V | D126: 个 | E126: 11 | F126: 20.05 | G126: 220.55
A127: 14 | B127: 控制室 | C127: 品牌：/ 、型号：建筑面积9㎡ | D127: 个 | E127: 1 | F127: 11,300.00 | G127: 11,300.00
A128: 15 | B128: 倒计时钟 | C128: 品牌：佩凯仕、 型号：LD-3 | D128: 个 | E128: 2 | F128: 4,800.00 | G128: 9,600.00
A129: 50米靶场
A130: 1 | B130: 插座 | C130: 品牌：人民牌 、型号：250V/10A | D130: 个 | E130: 48 | F130: 20.89 | G130: =F130*E130 -> 1,002.72
A131: 2 | B131: 凿（压)槽 | C131: 品牌：/ 、型号：100*140mm | D131: m | E131: 150 | F131: 23.87 | G131: =F131*E131 -> 3,580.50
A132: 3 | B132: 配电箱 | C132: 品牌：人民牌、 型号：600mm（宽）×400mm（高）×200mm（深） | D132: 台 | E132: 1 | F132: 2,773.49 | G132: 2,773.49
A133: 4 | B133: 线槽 | C133: 品牌：宏发、型号：Q235 | D133: m | E133: 5 | F133: 31.34 | G133: 156.70
A134: 5 | B134: 电力电缆 | C134: 品牌：珠江 、型号：YJV-5*4mm2 | D134: m | E134: 95 | F134: 25.97 | G134: 2,467.15
A135: 6 | B135: 配线 | C135: 品牌：珠江 、型号：BVV-3×4mm2 | D135: m | E135: 995 | F135: 24.94 | G135: 24,815.30
A136: 7 | B136: 墙面装饰板 | C136: 品牌：泓炎、型号：方钢 3mm | D136: m2 | E136: 60 | F136: 119.94 | G136: 7,196.40
A137: 8 | B137: 墙柱面龙骨及饰面拆除 | C137: 品牌：/ 、型号：/ | D137: m2 | E137: 60 | F137: 8.65 | G137: 519.00
A138: 9 | B138: 电力电缆 | C138: 品牌：珠江、型号：YJV-3*35mm2 | D138: m | E138: 50 | F138: 95.56 | G138: 4,778.00
A139: 10 | B139: 装饰灯 | C139: 品牌：三雄极光、型号：PAK567014 | D139: 套 | E139: 55 | F139: 170.19 | G139: 9,360.45
A140: 11 | B140: 装饰灯 | C140: 品牌：三雄极光、型号：PAK411495 | D140: 套 | E140: 35 | F140: 199.37 | G140: 6,977.95
A141: 12 | B141: 配管 | C141: 品牌：利达、 型号：DN15mm | D141: m | E141: 831.4 | F141: 10.52 | G141: 8,746.33
A142: 13 | B142: 配线 | C142: 品牌：珠江、型号：BV-2.5mm2） | D142: m | E142: 1662.77 | F142: 3.64 | G142: 6,052.48
A143: 14 | B143: 照明开关 | C143: 品牌：人民牌 、型号：10A/250V | D143: 个 | E143: 18 | F143: 20.05 | G143: 360.90
A144: 15 | B144: 投光灯 | C144: 品牌：三雄极光、型号：PAK475441 | D144: 套 | E144: 40 | F144: 300.70 | G144: 12,028.00
A145: 16 | B145: 控制室 | C145: 品牌：/ 、型号：建筑面积9㎡ | D145: 个 | E145: 1 | F145: 11,300.00 | G145: 11,300.00
A146: 17 | B146: 倒计时钟 | C146: 品牌：佩凯仕、 型号：LD-3 | D146: 个 | E146: 2 | F146: 4,800.00 | G146: 9,600.00
A147: 18 | B147: 倒计时钟 | C147: 品牌：佩凯仕、型号：LS-3 | D147: 个 | E147: 1 | F147: 9,600.00 | G147: 9,600.00
A148: 比赛专用器材
A149: 1 | B149: 空气压缩气瓶及工具 | C149: 品牌：友谊、型号：YYZST-QY93 | D149: 个 | E149: 3 | F149: 2,700.00 | G149: =F149*E149 -> 8,100.00
A150: 2 | B150: 充气压缩机 | C150: 品牌：友谊、型号：YYZST-RS76 | D150: 台 | E150: 1 | F150: 15,000.00 | G150: =F150*E150 -> 15,000.00
A151: 3 | B151: 扳机引力秤锤 | C151: 品牌：友谊、型号：YYZST-HQ87 | D151: 个 | E151: 3 | F151: 1,200.00 | G151: 3,600.00
A152: 4 | B152: 沙袋测量器 | C152: 品牌：友谊、型号：YYZST-KU77 | D152: 个 | E152: 2 | F152: 300.00 | G152: 600.00
A153: 5 | B153: 气步枪尺寸检查模板 | C153: 品牌：友谊、型号：YYZST-QV13 | D153: 个 | E153: 2 | F153: 1,200.00 | G153: 2,400.00
A154: 6 | B154: 游标卡尺 | C154: 品牌：友谊、型号：YYZST-KH46 | D154: 个 | E154: 1 | F154: 300.00 | G154: 300.00
A155: 7 | B155: 深度尺 | C155: 品牌：友谊、型号：YYZST-EJ96 | D155: 个 | E155: 1 | F155: 150.00 | G155: 150.00
A156: 8 | B156: 量枪盒 | C156: 品牌：友谊、型号：YYZST-SB98 | D156: 个 | E156: 1 | F156: 950.00 | G156: 950.00
A157: 9 | B157: 装备合格证 | C157: 品牌：友谊、型号：YYZST-DJ51 | D157: 个 | E157: 350 | F157: 0.50 | G157: 175.00
A158: 10 | B158: 处罚牌 | C158: 品牌：友谊、型号：YYZST-BJ83 | D158: 张 | E158: 9 | F158: 45.00 | G158: 405.00
A159: 11 | B159: 水平仪 | C159: 品牌：友谊、型号：YYZST-UC40 | D159: 台 | E159: 1 | F159: 150.00 | G159: 150.00
A160: 12 | B160: 电子大屏 | C160: 品牌：Unilumin 型号：PM2.0 | D160: 个 | E160: 1 | F160: 107,263.70 | G160: 107,263.70
A161: 报价：壹仟玖佰玖拾捌万零柒佰柒拾柒元整 （小写：¥19980777元）
